[Event "Titled Tuesday Blitz April 25 Late 2023"]
[White "Bitoon, Richard"]
[Black "Remolar Gallen, Jose"]
[WhiteFideId "5201110"]
[BlackFideId "2215187"]
[WhiteElo "2374"]
[BlackElo "2223"]
[Result "1-0"]
[Round "11"]
[TimeControl "180+2"]
[Date "2023.04.25"]
[WhiteClock "0:00:55"]
[BlackClock "0:00:01"]

1. e4 {[%clk 0:03:00]}  c5 {[%clk 0:02:54]} 2. c3 {[%clk 0:03:01]}  Nf6 {[%clk 0:02:52]} 3. e5 {[%clk 0:03:01]}  Nd5 {[%clk 0:02:53]} 4. d4 {[%clk 0:03:02]}  cxd4 {[%clk 0:02:51]} 5. Nf3 {[%clk 0:03:03]}  Nc6 {[%clk 0:02:50]} 6. Bc4 {[%clk 0:03:03]}  Nb6 {[%clk 0:02:50]} 7. Bb3 {[%clk 0:03:03]}  d5 {[%clk 0:02:50]} 8. exd6 {[%clk 0:03:04]}  Qxd6 {[%clk 0:02:50]} 9. O-O {[%clk 0:03:05]}  Be6 {[%clk 0:02:36]} 10. Na3 {[%clk 0:03:05]}  a6 {[%clk 0:02:34]} 11. Re1 {[%clk 0:03:00]}  Bxb3 {[%clk 0:02:24]} 12. axb3 {[%clk 0:03:01]}  e6 {[%clk 0:02:19]} 13. Nxd4 {[%clk 0:03:00]}  Nxd4 {[%clk 0:02:17]} 14. Be3 {[%clk 0:03:01]}  Nf5 {[%clk 0:02:08]} 15. Qxd6 {[%clk 0:03:01]}  Bxd6 {[%clk 0:02:07]} 16. Bxb6 {[%clk 0:03:02]}  Rc8 {[%clk 0:01:57]} 17. b4 {[%clk 0:02:44]}  O-O {[%clk 0:01:52]} 18. Rad1 {[%clk 0:02:37]}  Bc7 {[%clk 0:01:51]} 19. Bc5 {[%clk 0:02:27]}  Rfd8 {[%clk 0:01:50]} 20. Rxd8+ {[%clk 0:01:47]}  Rxd8 {[%clk 0:01:49]} 21. Nc4 {[%clk 0:01:47]}  h5 {[%clk 0:01:39]} 22. g3 {[%clk 0:01:38]}  g5 {[%clk 0:01:26]} 23. Kf1 {[%clk 0:01:18]}  Kh7 {[%clk 0:01:19]} 24. Ke2 {[%clk 0:01:18]}  Kg6 {[%clk 0:01:18]} 25. Ra1 {[%clk 0:01:17]}  f6 {[%clk 0:00:40]} 26. Bb6 {[%clk 0:01:17]}  Bxb6 {[%clk 0:00:38]} 27. Nxb6 {[%clk 0:01:18]}  Nd6 {[%clk 0:00:24]} 28. Na4 {[%clk 0:01:18]}  Nc4 {[%clk 0:00:19]} 29. b3 {[%clk 0:01:18]}  Nd6 {[%clk 0:00:12]} 30. Nc5 {[%clk 0:01:18]}  Nb5 {[%clk 0:00:09]} 31. Rc1 {[%clk 0:01:16]}  Nd6 {[%clk 0:00:04]} 32. Rd1 {[%clk 0:01:13]}  Kf7 {[%clk 0:00:04]} 33. h4 {[%clk 0:01:00]}  gxh4 {[%clk 0:00:04]} 34. gxh4 {[%clk 0:01:01]}  Ke7 {[%clk 0:00:04]} 35. Rg1 {[%clk 0:00:59]}  Nf5 {[%clk 0:00:01]} 36. Nd3 {[%clk 0:00:56]}  Rc8 {[%clk 0:00:02]} 37. c4 {[%clk 0:00:56]}  Rf8 {[%clk 0:00:01]} 38. Nf4 {[%clk 0:00:55]} 1-0


[Site "https://www.chess.com"]

[Event "Titled Tuesday Blitz April 25 Late 2023"]
[White "Korkmaz, Necmettin"]
[Black "Prohaszka, Peter"]
[WhiteFideId "6303285"]
[BlackFideId "726265"]
[WhiteElo "2097"]
[BlackElo "2626"]
[Result "0-1"]
[Round "11"]
[TimeControl "180+2"]
[Date "2023.04.25"]
[WhiteClock "0:00:06"]
[BlackClock "0:00:36"]

1. e4 {[%clk 0:03:00]}  c6 {[%clk 0:02:54]} 2. d4 {[%clk 0:03:00]}  d5 {[%clk 0:02:54]} 3. e5 {[%clk 0:03:00]}  c5 {[%clk 0:02:54]} 4. dxc5 {[%clk 0:02:58]}  Nc6 {[%clk 0:02:53]} 5. Nf3 {[%clk 0:02:49]}  Bg4 {[%clk 0:02:52]} 6. Bb5 {[%clk 0:02:47]}  e6 {[%clk 0:02:49]} 7. Be3 {[%clk 0:02:43]}  Bxf3 {[%clk 0:02:47]} 8. Qxf3 {[%clk 0:02:40]}  Ne7 {[%clk 0:02:39]} 9. c3 {[%clk 0:02:33]}  Nf5 {[%clk 0:01:57]} 10. Bd4 {[%clk 0:02:23]}  Qa5 {[%clk 0:01:55]} 11. Bxc6+ {[%clk 0:02:21]}  bxc6 {[%clk 0:01:56]} 12. Kd1 {[%clk 0:02:14]}  Nxd4 {[%clk 0:01:49]} 13. cxd4 {[%clk 0:02:13]}  Qa4+ {[%clk 0:01:49]} 14. Ke2 {[%clk 0:02:01]}  Qxd4 {[%clk 0:01:50]} 15. Qe3 {[%clk 0:01:56]}  Bxc5 {[%clk 0:01:43]} 16. Qxd4 {[%clk 0:01:51]}  Bxd4 {[%clk 0:01:44]} 17. Nd2 {[%clk 0:01:49]}  Bxb2 {[%clk 0:01:43]} 18. Rab1 {[%clk 0:01:49]}  Bxe5 {[%clk 0:01:42]} 19. Rhc1 {[%clk 0:01:46]}  Kd7 {[%clk 0:01:21]} 20. Rb7+ {[%clk 0:01:45]}  Bc7 {[%clk 0:01:21]} 21. Nf3 {[%clk 0:01:38]}  f6 {[%clk 0:01:15]} 22. Nd4 {[%clk 0:01:37]}  Rhb8 {[%clk 0:01:16]} 23. Rxc7+ {[%clk 0:00:57]}  Kxc7 {[%clk 0:01:13]} 24. Rxc6+ {[%clk 0:00:52]}  Kd7 {[%clk 0:01:13]} 25. Ra6 {[%clk 0:00:39]}  Rb6 {[%clk 0:01:11]} 26. Ra3 {[%clk 0:00:39]}  Rb2+ {[%clk 0:01:10]} 27. Ke3 {[%clk 0:00:38]}  e5 {[%clk 0:01:10]} 28. Nb3 {[%clk 0:00:38]}  d4+ {[%clk 0:01:07]} 29. Kf3 {[%clk 0:00:38]}  a5 {[%clk 0:00:56]} 30. Ra4 {[%clk 0:00:38]}  Rc8 {[%clk 0:00:51]} 31. Rxa5 {[%clk 0:00:29]}  Rc3+ {[%clk 0:00:52]} 32. Ke4 {[%clk 0:00:29]}  Rxf2 {[%clk 0:00:51]} 33. Kd5 {[%clk 0:00:26]}  d3 {[%clk 0:00:45]} 34. Ra7+ {[%clk 0:00:25]}  Kc8 {[%clk 0:00:43]} 35. Ra8+ {[%clk 0:00:16]}  Kb7 {[%clk 0:00:43]} 36. Rd8 {[%clk 0:00:16]}  Rxb3 {[%clk 0:00:36]} 37. axb3 {[%clk 0:00:15]}  Rf4 {[%clk 0:00:36]} 38. Ke6 {[%clk 0:00:11]}  Rd4 {[%clk 0:00:36]} 39. Rg8 {[%clk 0:00:08]}  d2 {[%clk 0:00:36]} 40. Rxg7+ {[%clk 0:00:09]}  Kc6 {[%clk 0:00:37]} 41. Rg8 {[%clk 0:00:07]}  Rd6+ {[%clk 0:00:36]} 42. Ke7 {[%clk 0:00:06]}  d1=Q {[%clk 0:00:36]} 43. Rc8+ {[%clk 0:00:06]}  Kb7 {[%clk 0:00:36]} 0-1


[Site "https://www.chess.com"]

[Event "Titled Tuesday Blitz April 25 Late 2023"]
[White "Banzea, Alexandru-Bogdan"]
[Black "Meunier-Pion, Jean"]
[WhiteFideId "1232622"]
[BlackFideId "20685327"]
[WhiteElo "2294"]
[BlackElo "2124"]
[Result "1-0"]
[Round "11"]
[TimeControl "180+2"]
[Date "2023.04.25"]
[WhiteClock "0:01:22"]
[BlackClock "0:00:11"]

1. d4 {[%clk 0:03:00]}  Nf6 {[%clk 0:02:59]} 2. Bf4 {[%clk 0:03:00]}  e6 {[%clk 0:02:57]} 3. Nf3 {[%clk 0:03:00]}  c5 {[%clk 0:02:52]} 4. e3 {[%clk 0:03:00]}  Nc6 {[%clk 0:02:52]} 5. Nbd2 {[%clk 0:03:00]}  d5 {[%clk 0:02:52]} 6. c3 {[%clk 0:03:01]}  Be7 {[%clk 0:02:52]} 7. Ne5 {[%clk 0:03:01]}  Nxe5 {[%clk 0:02:49]} 8. dxe5 {[%clk 0:03:02]}  Nd7 {[%clk 0:02:46]} 9. h4 {[%clk 0:03:02]}  Qb6 {[%clk 0:02:42]} 10. Rb1 {[%clk 0:02:31]}  a5 {[%clk 0:02:39]} 11. Qg4 {[%clk 0:02:30]}  Kf8 {[%clk 0:02:32]} 12. Bd3 {[%clk 0:02:29]}  a4 {[%clk 0:02:24]} 13. h5 {[%clk 0:02:28]}  h6 {[%clk 0:02:24]} 14. Rh3 {[%clk 0:02:28]}  c4 {[%clk 0:01:33]} 15. Rg3 {[%clk 0:02:24]}  Ke8 {[%clk 0:01:09]} 16. Qxg7 {[%clk 0:02:23]}  Rf8 {[%clk 0:01:09]} 17. Bc2 {[%clk 0:02:01]}  Nc5 {[%clk 0:01:06]} 18. Bxh6 {[%clk 0:01:54]}  a3 {[%clk 0:01:06]} 19. Qh7 {[%clk 0:01:48]}  axb2 {[%clk 0:01:03]} 20. Bxf8 {[%clk 0:01:43]}  Bxf8 {[%clk 0:01:03]} 21. Rg8 {[%clk 0:01:38]}  Rxa2 {[%clk 0:00:49]} 22. Rxf8+ {[%clk 0:01:31]}  Kxf8 {[%clk 0:00:49]} 23. Qh8+ {[%clk 0:01:32]}  Ke7 {[%clk 0:00:49]} 24. Qxc8 {[%clk 0:01:31]}  Nd3+ {[%clk 0:00:36]} 25. Bxd3 {[%clk 0:01:31]}  cxd3 {[%clk 0:00:37]} 26. h6 {[%clk 0:01:27]}  Ra1 {[%clk 0:00:35]} 27. h7 {[%clk 0:01:25]}  Rxb1+ {[%clk 0:00:17]} 28. Nxb1 {[%clk 0:01:26]}  d2+ {[%clk 0:00:17]} 29. Kxd2 {[%clk 0:01:26]}  d4 {[%clk 0:00:16]} 30. exd4 {[%clk 0:01:26]}  Qa6 {[%clk 0:00:10]} 31. h8=Q {[%clk 0:01:23]}  Qf1 {[%clk 0:00:11]} 32. Qf6# {[%clk 0:01:22]} 1-0


[Site "https://www.chess.com"]

[Event "Titled Tuesday Blitz April 25 Late 2023"]
[White "Deviprasath, Sharvesh"]
[Black "Munoz, Francisco Javier"]
[WhiteFideId "30938228"]
[BlackFideId "128368"]
[WhiteElo "2168"]
[BlackElo "2383"]
[Result "1-0"]
[Round "11"]
[TimeControl "180+2"]
[Date "2023.04.25"]
[WhiteClock "0:00:21"]
[BlackClock "0:00:05"]

1. e4 {[%clk 0:03:00]}  e5 {[%clk 0:02:59]} 2. Nf3 {[%clk 0:02:59]}  Nc6 {[%clk 0:03:00]} 3. Bb5 {[%clk 0:02:54]}  a6 {[%clk 0:02:59]} 4. Ba4 {[%clk 0:02:53]}  Nge7 {[%clk 0:02:59]} 5. O-O {[%clk 0:02:53]}  g6 {[%clk 0:03:00]} 6. c3 {[%clk 0:02:53]}  Bg7 {[%clk 0:03:00]} 7. d4 {[%clk 0:02:54]}  exd4 {[%clk 0:03:01]} 8. cxd4 {[%clk 0:02:54]}  O-O {[%clk 0:03:02]} 9. d5 {[%clk 0:02:36]}  b5 {[%clk 0:03:01]} 10. Bc2 {[%clk 0:02:33]}  Na5 {[%clk 0:03:01]} 11. Nc3 {[%clk 0:02:30]}  d6 {[%clk 0:03:00]} 12. h3 {[%clk 0:02:27]}  c5 {[%clk 0:02:51]} 13. dxc6 {[%clk 0:02:24]}  Nexc6 {[%clk 0:02:52]} 14. Bf4 {[%clk 0:02:20]}  Nc4 {[%clk 0:02:50]} 15. Bb3 {[%clk 0:02:15]}  N6a5 {[%clk 0:02:35]} 16. Bg5 {[%clk 0:02:11]}  Bf6 {[%clk 0:02:28]} 17. Bxf6 {[%clk 0:02:08]}  Qxf6 {[%clk 0:02:28]} 18. Rc1 {[%clk 0:02:08]}  Bb7 {[%clk 0:02:26]} 19. Bxc4 {[%clk 0:02:05]}  Nxc4 {[%clk 0:02:24]} 20. b3 {[%clk 0:02:06]}  Ne5 {[%clk 0:02:21]} 21. Nxe5 {[%clk 0:02:00]}  dxe5 {[%clk 0:02:04]} 22. Qd7 {[%clk 0:01:58]}  Rab8 {[%clk 0:02:00]} 23. Rfd1 {[%clk 0:01:53]}  Qg5 {[%clk 0:01:14]} 24. Nd5 {[%clk 0:01:38]}  Bxd5 {[%clk 0:01:06]} 25. exd5 {[%clk 0:01:38]}  Rfd8 {[%clk 0:00:53]} 26. Qc6 {[%clk 0:01:35]}  e4 {[%clk 0:00:46]} 27. d6 {[%clk 0:01:31]}  e3 {[%clk 0:00:45]} 28. fxe3 {[%clk 0:01:31]}  Qxe3+ {[%clk 0:00:44]} 29. Kh1 {[%clk 0:01:32]}  Qe6 {[%clk 0:00:29]} 30. Qxa6 {[%clk 0:01:28]}  Rd7 {[%clk 0:00:23]} 31. Rc7 {[%clk 0:01:23]}  Kg7 {[%clk 0:00:14]} 32. Qc6 {[%clk 0:01:10]}  Rbd8 {[%clk 0:00:09]} 33. Rxd7 {[%clk 0:01:05]}  Rxd7 {[%clk 0:00:10]} 34. Qxb5 {[%clk 0:01:02]}  Rxd6 {[%clk 0:00:10]} 35. Rxd6 {[%clk 0:01:03]}  Qxd6 {[%clk 0:00:10]} 36. Qe2 {[%clk 0:01:03]}  Qf4 {[%clk 0:00:07]} 37. a4 {[%clk 0:01:00]}  Qb4 {[%clk 0:00:06]} 38. Qd1 {[%clk 0:00:56]}  h5 {[%clk 0:00:05]} 39. Qa1+ {[%clk 0:00:53]}  Kh7 {[%clk 0:00:04]} 40. Qd1 {[%clk 0:00:50]}  h4 {[%clk 0:00:02]} 41. Kg1 {[%clk 0:00:34]}  Kg7 {[%clk 0:00:03]} 42. Kf1 {[%clk 0:00:34]}  g5 {[%clk 0:00:02]} 43. Qa1+ {[%clk 0:00:32]}  Kg6 {[%clk 0:00:03]} 44. Qb1+ {[%clk 0:00:32]}  f5 {[%clk 0:00:03]} 45. Qd3 {[%clk 0:00:32]}  Qf4+ {[%clk 0:00:03]} 46. Ke2 {[%clk 0:00:31]}  Qb4 {[%clk 0:00:04]} 47. Qc4 {[%clk 0:00:27]}  Qe7+ {[%clk 0:00:03]} 48. Kf2 {[%clk 0:00:26]}  Qa7+ {[%clk 0:00:03]} 49. Kf1 {[%clk 0:00:27]}  Qe3 {[%clk 0:00:02]} 50. a5 {[%clk 0:00:24]}  f4 {[%clk 0:00:02]} 51. a6 {[%clk 0:00:23]}  f3 {[%clk 0:00:02]} 52. Qc6+ {[%clk 0:00:23]}  Kg7 {[%clk 0:00:02]} 53. Qxf3 {[%clk 0:00:24]}  Qc1+ {[%clk 0:00:02]} 54. Kf2 {[%clk 0:00:23]}  Qc5+ {[%clk 0:00:02]} 55. Qe3 {[%clk 0:00:23]}  Qc2+ {[%clk 0:00:01]} 56. Kg1 {[%clk 0:00:22]}  Qd1+ {[%clk 0:00:01]} 57. Kf2 {[%clk 0:00:21]}  Qc2+ {[%clk 0:00:02]} 58. Kf3 {[%clk 0:00:21]}  Qf5+ {[%clk 0:00:02]} 59. Ke2 {[%clk 0:00:21]}  Qc2+ {[%clk 0:00:03]} 60. Qd2 {[%clk 0:00:21]}  Qe4+ {[%clk 0:00:03]} 61. Kf2 {[%clk 0:00:22]}  Qf5+ {[%clk 0:00:03]} 62. Kg1 {[%clk 0:00:21]}  Qc5+ {[%clk 0:00:04]} 63. Qf2 {[%clk 0:00:20]}  Qc1+ {[%clk 0:00:04]} 64. Qf1 {[%clk 0:00:20]}  Qc5+ {[%clk 0:00:05]} 65. Kh1 {[%clk 0:00:21]}  Qa7 {[%clk 0:00:04]} 66. Qc4 {[%clk 0:00:21]}  Kf6 {[%clk 0:00:04]} 67. b4 {[%clk 0:00:21]}  Qf2 {[%clk 0:00:04]} 68. Qc6+ {[%clk 0:00:16]}  Kg7 {[%clk 0:00:04]} 69. Qb7+ {[%clk 0:00:16]}  Kh6 {[%clk 0:00:03]} 70. Qc6+ {[%clk 0:00:16]}  Kg7 {[%clk 0:00:03]} 71. Qf3 {[%clk 0:00:16]}  Qe1+ {[%clk 0:00:02]} 72. Kh2 {[%clk 0:00:17]}  Qe5+ {[%clk 0:00:03]} 73. g3 {[%clk 0:00:17]}  hxg3+ {[%clk 0:00:02]} 74. Qxg3 {[%clk 0:00:18]}  Qe2+ {[%clk 0:00:03]} 75. Qg2 {[%clk 0:00:18]}  Qe5+ {[%clk 0:00:04]} 76. Kh1 {[%clk 0:00:18]}  Qe1+ {[%clk 0:00:04]} 77. Qg1 {[%clk 0:00:19]}  Qe4+ {[%clk 0:00:05]} 78. Kh2 {[%clk 0:00:19]}  Qe5+ {[%clk 0:00:05]} 79. Qg3 {[%clk 0:00:20]}  Qe2+ {[%clk 0:00:06]} 80. Kg1 {[%clk 0:00:20]}  Qd1+ {[%clk 0:00:05]} 81. Kf2 {[%clk 0:00:21]}  Qd4+ {[%clk 0:00:05]} 82. Kf3 {[%clk 0:00:21]}  Qd3+ {[%clk 0:00:05]} 83. Kg4 {[%clk 0:00:21]}  Qe4+ {[%clk 0:00:06]} 84. Kh5 {[%clk 0:00:20]}  Qg6+ {[%clk 0:00:06]} 85. Kg4 {[%clk 0:00:20]}  Qe4+ {[%clk 0:00:06]} 86. Kxg5 {[%clk 0:00:20]}  Qxb4 {[%clk 0:00:06]} 87. Qe5+ {[%clk 0:00:20]}  Kf7 {[%clk 0:00:07]} 88. Qf6+ {[%clk 0:00:21]}  Kg8 {[%clk 0:00:08]} 89. Qg6+ {[%clk 0:00:21]}  Kf8 {[%clk 0:00:07]} 90. Qf5+ {[%clk 0:00:20]}  Kg8 {[%clk 0:00:07]} 91. Qd5+ {[%clk 0:00:20]}  Kg7 {[%clk 0:00:07]} 92. Qb7+ {[%clk 0:00:21]}  Kg8 {[%clk 0:00:05]} 93. Qxb4 {[%clk 0:00:21]} 1-0


[Site "https://www.chess.com"]

[Event "Titled Tuesday Blitz April 25 Late 2023"]
[White "Tomaszewski, Kacper"]
[Black "Tsyhanchuk, Stanislav"]
[WhiteFideId "1127373"]
[BlackFideId "13505130"]
[WhiteElo "2211"]
[BlackElo "2173"]
[Result "1-0"]
[Round "11"]
[TimeControl "180+2"]
[Date "2023.04.25"]
[WhiteClock "0:00:11"]
[BlackClock "0:00:04"]

1. d4 {[%clk 0:03:00]}  Nf6 {[%clk 0:02:59]} 2. c4 {[%clk 0:03:01]}  e6 {[%clk 0:02:59]} 3. Nc3 {[%clk 0:03:01]}  Bb4 {[%clk 0:03:00]} 4. Bf4 {[%clk 0:03:02]}  c5 {[%clk 0:02:57]} 5. e3 {[%clk 0:03:02]}  O-O {[%clk 0:02:57]} 6. Ne2 {[%clk 0:02:51]}  d6 {[%clk 0:02:55]} 7. a3 {[%clk 0:02:49]}  Ba5 {[%clk 0:02:51]} 8. Qc2 {[%clk 0:02:47]}  Nc6 {[%clk 0:02:51]} 9. O-O-O {[%clk 0:02:42]}  cxd4 {[%clk 0:02:43]} 10. exd4 {[%clk 0:02:35]}  a6 {[%clk 0:02:33]} 11. g4 {[%clk 0:02:35]}  Nxg4 {[%clk 0:02:03]} 12. Rg1 {[%clk 0:02:29]}  f5 {[%clk 0:02:03]} 13. Ng3 {[%clk 0:02:13]}  Qf6 {[%clk 0:01:54]} 14. h3 {[%clk 0:02:09]}  Nxd4 {[%clk 0:01:52]} 15. Rxd4 {[%clk 0:01:57]}  Qxd4 {[%clk 0:01:50]} 16. Nge2 {[%clk 0:01:54]}  Qxf2 {[%clk 0:01:42]} 17. hxg4 {[%clk 0:01:52]}  Bb6 {[%clk 0:01:31]} 18. gxf5 {[%clk 0:01:42]}  Qe1+ {[%clk 0:01:28]} 19. Qd1 {[%clk 0:01:40]}  Qxd1+ {[%clk 0:01:28]} 20. Kxd1 {[%clk 0:01:37]}  Bxg1 {[%clk 0:01:28]} 21. Nxg1 {[%clk 0:01:38]}  e5 {[%clk 0:01:26]} 22. Be3 {[%clk 0:01:31]}  Bxf5 {[%clk 0:01:25]} 23. Bg2 {[%clk 0:01:24]}  Bg4+ {[%clk 0:01:24]} 24. Kd2 {[%clk 0:01:22]}  Rab8 {[%clk 0:01:22]} 25. Nd5 {[%clk 0:01:19]}  b5 {[%clk 0:01:16]} 26. Ne7+ {[%clk 0:01:13]}  Kh8 {[%clk 0:01:15]} 27. Nc6 {[%clk 0:01:14]}  Rbc8 {[%clk 0:01:13]} 28. cxb5 {[%clk 0:01:10]}  axb5 {[%clk 0:01:14]} 29. Ne2 {[%clk 0:01:08]}  Bf5 {[%clk 0:01:08]} 30. Nc3 {[%clk 0:00:52]}  h6 {[%clk 0:01:04]} 31. Ne7 {[%clk 0:00:45]}  Rb8 {[%clk 0:00:58]} 32. Ncd5 {[%clk 0:00:42]}  Be6 {[%clk 0:00:55]} 33. Ng6+ {[%clk 0:00:42]}  Kh7 {[%clk 0:00:49]} 34. Nxf8+ {[%clk 0:00:37]}  Rxf8 {[%clk 0:00:50]} 35. Nc7 {[%clk 0:00:36]}  Bf5 {[%clk 0:00:49]} 36. Nxb5 {[%clk 0:00:34]}  d5 {[%clk 0:00:43]} 37. Bc5 {[%clk 0:00:26]}  Rb8 {[%clk 0:00:35]} 38. a4 {[%clk 0:00:25]}  d4 {[%clk 0:00:34]} 39. Bd6 {[%clk 0:00:22]}  Re8 {[%clk 0:00:33]} 40. Bc6 {[%clk 0:00:21]}  Rc8 {[%clk 0:00:30]} 41. Na7 {[%clk 0:00:18]}  Rd8 {[%clk 0:00:22]} 42. Bxe5 {[%clk 0:00:18]}  d3 {[%clk 0:00:21]} 43. Nb5 {[%clk 0:00:15]}  Rc8 {[%clk 0:00:20]} 44. Nd4 {[%clk 0:00:15]}  Bg6 {[%clk 0:00:18]} 45. b4 {[%clk 0:00:14]}  h5 {[%clk 0:00:17]} 46. b5 {[%clk 0:00:15]}  h4 {[%clk 0:00:17]} 47. b6 {[%clk 0:00:15]}  Rf8 {[%clk 0:00:16]} 48. b7 {[%clk 0:00:15]}  Rf2+ {[%clk 0:00:16]} 49. Ke3 {[%clk 0:00:13]}  d2 {[%clk 0:00:15]} 50. b8=Q {[%clk 0:00:03]}  d1=Q {[%clk 0:00:15]} 51. Kxf2 {[%clk 0:00:04]}  Qd2+ {[%clk 0:00:13]} 52. Ne2 {[%clk 0:00:04]}  h3 {[%clk 0:00:13]} 53. Bh2 {[%clk 0:00:04]}  Qg5 {[%clk 0:00:12]} 54. Qg3 {[%clk 0:00:04]}  Qc5+ {[%clk 0:00:12]} 55. Qe3 {[%clk 0:00:03]}  Qxc6 {[%clk 0:00:12]} 56. Qxh3+ {[%clk 0:00:03]}  Kg8 {[%clk 0:00:13]} 57. Qf3 {[%clk 0:00:03]}  Qb6+ {[%clk 0:00:11]} 58. Qe3 {[%clk 0:00:03]}  Qf6+ {[%clk 0:00:11]} 59. Qf3 {[%clk 0:00:04]}  Qb6+ {[%clk 0:00:11]} 60. Qe3 {[%clk 0:00:04]}  Qf6+ {[%clk 0:00:10]} 61. Bf4 {[%clk 0:00:05]}  Bf5 {[%clk 0:00:09]} 62. a5 {[%clk 0:00:05]}  Qh4+ {[%clk 0:00:07]} 63. Bg3 {[%clk 0:00:04]}  Qh3 {[%clk 0:00:07]} 64. Qe8+ {[%clk 0:00:04]}  Kh7 {[%clk 0:00:07]} 65. Nf4 {[%clk 0:00:04]}  Qg4 {[%clk 0:00:05]} 66. Qh5+ {[%clk 0:00:04]}  Qxh5 {[%clk 0:00:05]} 67. Nxh5 {[%clk 0:00:05]}  Bd3 {[%clk 0:00:06]} 68. Nf4 {[%clk 0:00:06]}  Ba6 {[%clk 0:00:05]} 69. Nd5 {[%clk 0:00:06]}  Bb5 {[%clk 0:00:05]} 70. Nb4 {[%clk 0:00:07]}  Bc4 {[%clk 0:00:05]} 71. Ke3 {[%clk 0:00:08]}  Bb5 {[%clk 0:00:05]} 72. Kf4 {[%clk 0:00:08]}  Kh6 {[%clk 0:00:05]} 73. Bh4 {[%clk 0:00:09]}  Kh5 {[%clk 0:00:05]} 74. Bg5 {[%clk 0:00:10]}  g6 {[%clk 0:00:05]} 75. Nd5 {[%clk 0:00:10]}  Bd3 {[%clk 0:00:04]} 76. Nf6# {[%clk 0:00:11]} 1-0


[Site "https://www.chess.com"]

[Event "Titled Tuesday Blitz April 25 Late 2023"]
[White "Erzhanov, Arman"]
[Black "Garmash, Aliona"]
[WhiteFideId "4138821"]
[BlackFideId "34127620"]
[WhiteElo "2138"]
[BlackElo "1959"]
[Result "1-0"]
[Round "11"]
[TimeControl "180+2"]
[Date "2023.04.25"]
[WhiteClock "0:01:10"]
[BlackClock "0:00:06"]

1. e4 {[%clk 0:03:00]}  g6 {[%clk 0:02:59]} 2. d4 {[%clk 0:02:59]}  Bg7 {[%clk 0:03:00]} 3. Nc3 {[%clk 0:03:00]}  d6 {[%clk 0:03:00]} 4. h3 {[%clk 0:02:59]}  Nf6 {[%clk 0:02:56]} 5. g4 {[%clk 0:02:59]}  h5 {[%clk 0:02:54]} 6. g5 {[%clk 0:02:59]}  Nfd7 {[%clk 0:02:54]} 7. Bg2 {[%clk 0:02:58]}  e6 {[%clk 0:02:47]} 8. h4 {[%clk 0:02:57]}  c5 {[%clk 0:02:46]} 9. d5 {[%clk 0:02:55]}  Ne5 {[%clk 0:02:42]} 10. Nge2 {[%clk 0:02:51]}  O-O {[%clk 0:02:36]} 11. f4 {[%clk 0:02:39]}  Ng4 {[%clk 0:02:32]} 12. dxe6 {[%clk 0:02:33]}  fxe6 {[%clk 0:02:18]} 13. O-O {[%clk 0:02:20]}  Nc6 {[%clk 0:02:15]} 14. Kh1 {[%clk 0:02:09]}  Rb8 {[%clk 0:02:04]} 15. a4 {[%clk 0:02:08]}  b6 {[%clk 0:02:03]} 16. Ng3 {[%clk 0:02:08]}  Bb7 {[%clk 0:02:01]} 17. Bf3 {[%clk 0:02:04]}  Nd4 {[%clk 0:01:48]} 18. Bxg4 {[%clk 0:02:00]}  hxg4 {[%clk 0:01:49]} 19. Qxg4 {[%clk 0:01:58]}  Qe7 {[%clk 0:01:34]} 20. Rf2 {[%clk 0:01:55]}  a6 {[%clk 0:01:00]} 21. h5 {[%clk 0:01:54]}  gxh5 {[%clk 0:00:57]} 22. Qxh5 {[%clk 0:01:54]}  Ra8 {[%clk 0:00:27]} 23. Rh2 {[%clk 0:01:52]}  b5 {[%clk 0:00:20]} 24. Be3 {[%clk 0:01:31]}  b4 {[%clk 0:00:19]} 25. Nd1 {[%clk 0:01:28]}  a5 {[%clk 0:00:17]} 26. Nf2 {[%clk 0:01:28]}  Rac8 {[%clk 0:00:15]} 27. Ng4 {[%clk 0:01:28]}  Rf7 {[%clk 0:00:13]} 28. g6 {[%clk 0:01:21]}  Rf6 {[%clk 0:00:13]} 29. Qh7+ {[%clk 0:01:21]}  Kf8 {[%clk 0:00:13]} 30. Rf1 {[%clk 0:01:15]}  Bc6 {[%clk 0:00:08]} 31. b3 {[%clk 0:01:13]}  Qe8 {[%clk 0:00:07]} 32. Nxf6 {[%clk 0:01:12]}  Bxf6 {[%clk 0:00:07]} 33. f5 {[%clk 0:01:09]}  e5 {[%clk 0:00:06]} 34. Bh6+ {[%clk 0:01:10]} 1-0


[Site "https://www.chess.com"]

[Event "Titled Tuesday Blitz April 25 Late 2023"]
[White "Spata, German"]
[Black "Seletsky, Grigory"]
[WhiteFideId "113026"]
[BlackFideId "14112191"]
[WhiteElo "2238"]
[BlackElo "2490"]
[Result "1/2-1/2"]
[Round "11"]
[TimeControl "180+2"]
[Date "2023.04.25"]
[WhiteClock "0:01:03"]
[BlackClock "0:00:46"]

1. Nf3 {[%clk 0:02:51]}  c5 {[%clk 0:02:58]} 2. c4 {[%clk 0:02:51]}  b6 {[%clk 0:02:57]} 3. b3 {[%clk 0:02:51]}  Bb7 {[%clk 0:02:57]} 4. Bb2 {[%clk 0:02:52]}  Nf6 {[%clk 0:02:54]} 5. g3 {[%clk 0:02:52]}  g6 {[%clk 0:02:54]} 6. Bg2 {[%clk 0:02:52]}  Bg7 {[%clk 0:02:54]} 7. O-O {[%clk 0:02:52]}  O-O {[%clk 0:02:54]} 8. Nc3 {[%clk 0:02:51]}  d6 {[%clk 0:02:54]} 9. d4 {[%clk 0:02:51]}  cxd4 {[%clk 0:02:53]} 10. Qxd4 {[%clk 0:02:52]}  Ne4 {[%clk 0:02:48]} 11. Qd3 {[%clk 0:02:51]}  Nxc3 {[%clk 0:02:45]} 12. Bxc3 {[%clk 0:02:52]}  Nd7 {[%clk 0:02:43]} 13. Bxg7 {[%clk 0:02:50]}  Kxg7 {[%clk 0:02:44]} 14. Rad1 {[%clk 0:02:51]}  Nf6 {[%clk 0:02:39]} 15. h4 {[%clk 0:02:50]}  Qc7 {[%clk 0:02:13]} 16. Rfe1 {[%clk 0:02:49]}  Be4 {[%clk 0:02:11]} 17. Qd4 {[%clk 0:02:48]}  Qb7 {[%clk 0:02:11]} 18. Rd2 {[%clk 0:02:37]}  h5 {[%clk 0:02:09]} 19. Red1 {[%clk 0:02:37]}  Rfc8 {[%clk 0:02:08]} 20. Ne1 {[%clk 0:02:35]}  Bxg2 {[%clk 0:01:58]} 21. Nxg2 {[%clk 0:02:35]}  Qe4 {[%clk 0:01:57]} 22. Qb2 {[%clk 0:02:32]}  Rab8 {[%clk 0:01:53]} 23. Nf4 {[%clk 0:02:27]}  Kg8 {[%clk 0:01:52]} 24. Rd4 {[%clk 0:02:04]}  Qf5 {[%clk 0:01:47]} 25. Nd5 {[%clk 0:01:58]}  Nxd5 {[%clk 0:01:45]} 26. Rxd5 {[%clk 0:01:59]}  Qe6 {[%clk 0:01:44]} 27. R1d3 {[%clk 0:01:54]}  Rc5 {[%clk 0:01:45]} 28. Re3 {[%clk 0:01:54]}  Qd7 {[%clk 0:01:44]} 29. Qd4 {[%clk 0:01:51]}  Rbc8 {[%clk 0:01:40]} 30. Qe4 {[%clk 0:01:51]}  Rxd5 {[%clk 0:01:40]} 31. Qxd5 {[%clk 0:01:51]}  Rc5 {[%clk 0:01:34]} 32. Qe4 {[%clk 0:01:47]}  Rc7 {[%clk 0:01:32]} 33. Kg2 {[%clk 0:01:39]}  Kg7 {[%clk 0:01:32]} 34. Qd4+ {[%clk 0:01:38]}  Kg8 {[%clk 0:01:31]} 35. Rd3 {[%clk 0:01:36]}  Qc6+ {[%clk 0:01:31]} 36. e4 {[%clk 0:01:36]}  Qc5 {[%clk 0:01:30]} 37. f4 {[%clk 0:01:28]}  b5 {[%clk 0:01:28]} 38. Qxc5 {[%clk 0:01:27]}  Rxc5 {[%clk 0:01:27]} 39. cxb5 {[%clk 0:01:28]}  Rc2+ {[%clk 0:01:21]} 40. Kf3 {[%clk 0:01:27]}  Rxa2 {[%clk 0:01:21]} 41. Rc3 {[%clk 0:01:27]}  Ra5 {[%clk 0:01:21]} 42. Rc7 {[%clk 0:01:23]}  Rxb5 {[%clk 0:01:19]} 43. Rxe7 {[%clk 0:01:24]}  Rxb3+ {[%clk 0:01:19]} 44. Kf2 {[%clk 0:01:24]}  a5 {[%clk 0:01:13]} 45. Ra7 {[%clk 0:01:22]}  Rb5 {[%clk 0:01:08]} 46. Ra6 {[%clk 0:01:22]}  d5 {[%clk 0:01:05]} 47. e5 {[%clk 0:01:19]}  Rb2+ {[%clk 0:00:57]} 48. Ke3 {[%clk 0:01:16]}  Rb3+ {[%clk 0:00:57]} 49. Kf2 {[%clk 0:01:16]}  Rb2+ {[%clk 0:00:57]} 50. Ke3 {[%clk 0:01:16]}  Rb3+ {[%clk 0:00:57]} 51. Kf2 {[%clk 0:01:06]}  Rb5 {[%clk 0:00:51]} 52. Ke3 {[%clk 0:01:03]}  Rb3+ {[%clk 0:00:46]} 1/2-1/2


[Site "https://www.chess.com"]